{"text_format":"1","workbook":"xlsx","n_sheets":3,"sheets":["Data","Log_Merge","Setup_Form"],"not_rendered":{"charts":0,"images":0,"macros":1,"external_links":0,"defined_names":2,"comments":0,"pivot_tables":0},"unopened":[],"bounds":{"document_bytes":16777216,"sheet_cells":100000,"rows_first":2000,"rows_last":500,"rows_between":2000,"halvings":0,"cell_chars":16384,"cell_head_chars":4096},"cells_cut":0,"cells_raw":0,"read":"whole","date_system":"1900"}

{"sheet":"Data","index":0,"n_rows":8,"n_cols":23,"rows_kept":8,"cut":false,"hidden":false,"merged":[]}
[]
["STT","SO_HD","TEN_DV_HUONG_THU","DIA_CHI","DIEN_THOAI","TAI_KHOAN","NGAN_HANG","DIA_CHI_NGAN_HANG","SWIFT","MUC_DICH_TT","TAI_LIEU_CHUNG_MINH","NGAY_CHUNG_TU","NGAY_GIAI_NGAN","TONG_ST_NHAN_NO","SO_TIEN_USD","TY_GIA","THANH_TIEN_VND","BANG_CHU_USD","BANG_CHU_VND","BANG_CHU_TONG_TIEN","NGAY_DIEN_HAN","NGAY_BS_CHUNG_TU","NGAY_KY"]
[1,null,null,null,null,"",null,null,null,null,null,"2025-05-01","2025-05-31",323232323,252555,26263,{"$f":"IF(OR(P3=0,P3=\"\"),O3,O3*P3)","v":6632851965},{"$f":"IF(OR(P3=\"\",P3=0),\"\",vusd(O3))","v":"Hai trăm năm mươi hai nghìn, năm trăm năm mươi lăm đô la Mỹ."},{"$f":"vnd(Q3)","v":"Sáu tỷ, sáu trăm ba mươi hai triệu, tám trăm năm mươi mốt nghìn, chín trăm sáu mươi lăm đồng."},{"$f":"vnd(N3)","v":"Ba trăm hai mươi ba triệu, hai trăm ba mươi hai nghìn, ba trăm hai mươi ba đồng."},{"$f":"M3+179","v":"2025-11-26"},{"$f":"M3+80","v":"2025-08-19"},{"$f":"\"ngày \"&IF(DAY(L3)<10,\"0\"&DAY(L3),DAY(L3))&\" tháng \"&IF(MONTH(L3)<10,\"0\"&MONTH(L3),MONTH(L3))&\" năm \"&YEAR(L3)","v":"ngày 01 tháng 05 năm 2025"}]
[2,41,"ZHEJIANG HENGTAI INTELLIGENT DEVICE CO., LTD","NO.373，OUFAN ROAD， DONGTOU DISTRICT,WENZHOU CITY, ZHEJIANG, CHINA","0577-86290707","19235314040000137","Agricultural Bank of China, Zhejiang Branch","55 Changqing Street, Hangzhou, Zhejiang Province 310003, P.R. China","ABOCCNBJ110","Thanh toán 20% Contract No. HT-20251110-2 ngày 10/11/2025; Invoice No. HT-20251110-2 ngày 10/11/2025","Contract No. HT-20251110-2 ngày 10/11/2025; Invoice No. HT-20251110-2 ngày 10/11/2025","2025-12-12","2025-12-12",16564945184,2000000,null,{"$f":"IF(OR(P4=0,P4=\"\"),O4,O4*P4)","v":2000000},{"$f":"IF(OR(P4=\"\",P4=0),\"\",vusd(O4))","v":""},{"$f":"vnd(Q4)","v":"Hai triệu đồng."},{"$f":"vnd(N4)","v":"Mười sáu tỷ, năm trăm sáu mươi tư triệu, chín trăm bốn mươi lăm nghìn, một trăm tám mươi tư đồng."},{"$f":"M4+179","v":"2026-06-09"},{"$f":"M4+80","v":"2026-03-02"},"ngày 12 tháng 12 năm 2025"]
[3,null,null,null,null,"",null,null,null,null,null,"2025-01-05",{"$f":"L5","v":"2025-01-05"},16564945184,7000000,null,{"$f":"IF(OR(P5=0,P5=\"\"),O5,O5*P5)","v":7000000},{"$f":"IF(OR(P5=\"\",P5=0),\"\",vusd(O5))","v":""},{"$f":"vnd(Q5)","v":"Bảy triệu đồng."},{"$f":"vnd(N5)","v":"Mười sáu tỷ, năm trăm sáu mươi tư triệu, chín trăm bốn mươi lăm nghìn, một trăm tám mươi tư đồng."},{"$f":"M5+179","v":"2025-07-03"},{"$f":"M5+80","v":"2025-03-26"},{"$f":"\"ngày \"&IF(DAY(L5)<10,\"0\"&DAY(L5),DAY(L5))&\" tháng \"&IF(MONTH(L5)<10,\"0\"&MONTH(L5),MONTH(L5))&\" năm \"&YEAR(L5)","v":"ngày 05 tháng 01 năm 2025"}]
[4,43,"ZHEJIANG HENGTAI INTELLIGENT DEVICE CO., LTD","NO.373，OUFAN ROAD， DONGTOU DISTRICT,WENZHOU CITY, ZHEJIANG, CHINA","0577-86290707","19235314040000137","Agricultural Bank of China, Zhejiang Branch","55 Changqing Street, Hangzhou, Zhejiang Province 310003, P.R. China","ABOCCNBJ110","Thanh toán 20% Contract No. HT-20251110-2 ngày 10/11/2025; Invoice No. HT-20251110-2 ngày 10/11/2025","Contract No. HT-20251110-2 ngày 10/11/2025; Invoice No. HT-20251110-2 ngày 10/11/2025","2025-12-24","2026-01-01",16564945184,4,null,{"$f":"IF(OR(P6=0,P6=\"\"),O6,O6*P6)","v":4},{"$f":"IF(OR(P6=\"\",P6=0),\"\",vusd(O6))","v":""},{"$f":"vnd(Q6)","v":"Bốn đồng."},{"$f":"vnd(N6)","v":"Mười sáu tỷ, năm trăm sáu mươi tư triệu, chín trăm bốn mươi lăm nghìn, một trăm tám mươi tư đồng."},{"$f":"M6+179","v":"2026-06-29"},{"$f":"M6+80","v":"2026-03-22"},{"$f":"\"ngày \"&IF(DAY(L6)<10,\"0\"&DAY(L6),DAY(L6))&\" tháng \"&IF(MONTH(L6)<10,\"0\"&MONTH(L6),MONTH(L6))&\" năm \"&YEAR(L6)","v":"ngày 24 tháng 12 năm 2025"}]
[5,43,null,null,null,"",null,null,null,null,null,null,null,null,null,null,{"$f":"IF(OR(P7=0,P7=\"\"),O7,O7*P7)","v":0},{"$f":"IF(OR(P7=\"\",P7=0),\"\",vusd(O7))","v":""},{"$f":"vnd(Q7)","v":"Không đồng"},{"$f":"vnd(N7)","v":"Không đồng"},{"$f":"M7+179","v":"1900-06-27"},{"$f":"M7+80","v":"1900-03-20"},{"$f":"\"ngày \"&IF(DAY(L7)<10,\"0\"&DAY(L7),DAY(L7))&\" tháng \"&IF(MONTH(L7)<10,\"0\"&MONTH(L7),MONTH(L7))&\" năm \"&YEAR(L7)","v":"ngày 00 tháng 01 năm 1900"}]
[null,null,null,null,null,null,null,null,null,null,null,null,{"$f":"L8","v":"00:00:00"},{"$f":"N7+Q7","v":0},null,null,{"$f":"IF(OR(P8=0,P8=\"\"),O8,O8*P8)","v":0},{"$f":"IF(OR(P8=\"\",P8=0),\"\",vusd(O8))","v":""},{"$f":"vnd(Q8)","v":"Không đồng"},{"$f":"vnd(N8)","v":"Không đồng"},{"$f":"M8+179","v":"1900-06-27"},{"$f":"M8+80","v":"1900-03-20"},{"$f":"\"ngày \"&IF(DAY(L8)<10,\"0\"&DAY(L8),DAY(L8))&\" tháng \"&IF(MONTH(L8)<10,\"0\"&MONTH(L8),MONTH(L8))&\" năm \"&YEAR(L8)","v":"ngày 00 tháng 01 năm 1900"}]

{"sheet":"Log_Merge","index":1,"n_rows":24,"n_cols":5,"rows_kept":24,"cut":false,"hidden":false,"merged":[]}
["Dòng Excel","File mẫu","File Kết quả","Trạng thái","Ghi chú Lỗi"]
[2,"C:\\Users\\Hung\\Downloads\\QUAN LY VAY VCB DONG DONG NAI\\QUAN LY VAY VCB DONG DONG NAI\\Mau_DeNghiGiaiNgan_V2.docx","Mau_DeNghiGiaiNgan_V2_DONG_0002.docx","OK"]
[3,"C:\\Users\\Hung\\Downloads\\QUAN LY VAY VCB DONG DONG NAI\\QUAN LY VAY VCB DONG DONG NAI\\Mau_DeNghiGiaiNgan_V2.docx","Mau_DeNghiGiaiNgan_V2_DONG_0003.docx","OK"]
[2,"C:\\Users\\Hung\\Downloads\\QUAN LY VAY VCB DONG DONG NAI\\QUAN LY VAY VCB DONG DONG NAI\\Mau_DeNghiGiaiNgan_V2.docx","Mau_DeNghiGiaiNgan_V2_DONG_0002.docx","OK"]
[3,"C:\\Users\\Hung\\Downloads\\QUAN LY VAY VCB DONG DONG NAI\\QUAN LY VAY VCB DONG DONG NAI\\Mau_DeNghiGiaiNgan_V2.docx","Mau_DeNghiGiaiNgan_V2_DONG_0003.docx","OK"]
[2,"C:\\Users\\Hung\\Downloads\\QUAN LY VAY VCB DONG DONG NAI\\QUAN LY VAY VCB DONG DONG NAI\\Mau_DeNghiGiaiNgan_V2.docx","Mau_DeNghiGiaiNgan_V2_DONG_0002.docx","OK"]
[3,"C:\\Users\\Hung\\Downloads\\QUAN LY VAY VCB DONG DONG NAI\\QUAN LY VAY VCB DONG DONG NAI\\Mau_DeNghiGiaiNgan_V2.docx","Mau_DeNghiGiaiNgan_V2_DONG_0003.docx","OK"]
[3,"C:\\Users\\Hung\\Downloads\\QUAN LY VAY VCB DONG DONG NAI\\QUAN LY VAY VCB DONG DONG NAI\\Mau_DeNghiGiaiNgan_V2.docx","Mau_DeNghiGiaiNgan_V2_DONG_0003.docx","OK"]
[4,"C:\\Users\\Hung\\Downloads\\QUAN LY VAY VCB DONG DONG NAI\\QUAN LY VAY VCB DONG DONG NAI\\Mau_DeNghiGiaiNgan_V2.docx","Mau_DeNghiGiaiNgan_V2_DONG_0004.docx","OK"]
[3,"C:\\Users\\Hung\\Downloads\\QUAN LY VAY VCB DONG DONG NAI\\QUAN LY VAY VCB DONG DONG NAI\\Mau_DeNghiGiaiNgan_V2.docx","Mau_DeNghiGiaiNgan_V2_ROW_0003.docx","OK"]
[4,"C:\\Users\\Hung\\Downloads\\QUAN LY VAY VCB DONG DONG NAI\\QUAN LY VAY VCB DONG DONG NAI\\Mau_DeNghiGiaiNgan_V2.docx","Mau_DeNghiGiaiNgan_V2_ROW_0004.docx","OK"]
[3,"C:\\Users\\Hung\\Downloads\\QUAN LY VAY VCB DONG DONG NAI\\QUAN LY VAY VCB DONG DONG NAI\\Mau_DeNghiGiaiNgan_V2.docx","Mau_DeNghiGiaiNgan_V2_ROW_0003.docx","OK"]
[4,"C:\\Users\\Hung\\Downloads\\QUAN LY VAY VCB DONG DONG NAI\\QUAN LY VAY VCB DONG DONG NAI\\Mau_DeNghiGiaiNgan_V2.docx","Mau_DeNghiGiaiNgan_V2_ROW_0004.docx","OK"]
[3,"F:\\CONG VIEC\\CONG TY NGOC THOM\\HO SO GIAI NGAN\\Mau_DeNghiGiaiNgan_V2.docx","Mau_DeNghiGiaiNgan_V2_ROW_0003.docx","OK"]
[4,"F:\\CONG VIEC\\CONG TY NGOC THOM\\HO SO GIAI NGAN\\Mau_DeNghiGiaiNgan_V2.docx","Mau_DeNghiGiaiNgan_V2_ROW_0004.docx","OK"]
[3,"F:\\CONG VIEC\\CONG TY NGOC THOM\\HO SO GIAI NGAN\\Mau_DeNghiGiaiNgan_V2.docx","Mau_DeNghiGiaiNgan_V2_ROW_0003.docx","OK"]
[3,"X:\\02 NHI\\QUAN LY VAY VCB DONG DONG NAI\\GIAI NGAN MAU\\GIAI NGAN TT QUOC TE_Mau\\GIAY NHAN NO__mau.doc","GIAY NHAN NO__mau_ROW_0003.docx","OK"]
[3,"X:\\02 NHI\\QUAN LY VAY VCB DONG DONG NAI\\GIAI NGAN MAU\\GIAI NGAN TT QUOC TE_Mau\\GIAY NHAN NO__mau.doc","GIAY NHAN NO__mau_ROW_0003.docx","OK"]
[4,"F:\\CONG VIEC\\CONG TY NGOC THOM\\HO SO GIAI NGAN\\Mau_DeNghiGiaiNgan_V2.docx","Mau_DeNghiGiaiNgan_V2_ROW_0004.docx","OK"]
[3,"F:\\CONG VIEC\\CONG TY NGOC THOM\\HO SO GIAI NGAN\\Mau_DeNghiGiaiNgan_V2.docx","Mau_DeNghiGiaiNgan_V2_ROW_0003.docx","OK"]
[3,"F:\\CONG VIEC\\CONG TY NGOC THOM\\HO SO GIAI NGAN\\Mau_DeNghiGiaiNgan_V2_ROW_0003.docx","Mau_DeNghiGiaiNgan_V2_ROW_0003_ROW_0003.docx","OK"]
[3,"F:\\CONG VIEC\\CONG TY NGOC THOM\\HO SO GIAI NGAN\\Mau_DeNghiGiaiNgan_V2.docx","Mau_DeNghiGiaiNgan_V2_ROW_0003.docx","OK"]
[4,"F:\\CONG VIEC\\CONG TY NGOC THOM\\HO SO GIAI NGAN\\Mau_DeNghiGiaiNgan_V2.docx","Mau_DeNghiGiaiNgan_V2_ROW_0004.docx","OK"]
[4,"X:\\02 NHI\\QUAN LY VAY VCB DONG DONG NAI\\GIAI NGAN MAU\\GIAI NGAN TT QUOC TE_Mau\\GIAY NHAN NO__mau.doc","GIAY NHAN NO__mau_ROW_0004.docx","OK"]

{"sheet":"Setup_Form","index":2,"n_rows":16,"n_cols":3,"rows_kept":16,"cut":false,"hidden":false,"merged":[]}
["CỘT","RỘNG","CAO"]
["STT",40,20]
["SO_HD",40,20]
["TEN_DV_HUONG_THU",200,35]
["DIA_CHI",200,50]
["DIEN_THOAI",100,20]
["TAI_KHOAN",200,30]
["NGAN_HANG",200,35]
["DIA_CHI_NGAN_HANG",200,40]
["SWIFT",100,20]
["MUC_DICH_TT",200,50]
["TAI_LIEU_CHUNG_MINH",200,50]
["NGAY_CHUNG_TU",80,20]
["NGAY_GIAI_NGAN",80,20]
["TONG_ST_NHAN_NO",100,20]
["SO_TIEN_USD",100,20]